fUSD/lending_fUSD_20250507
["ID","MTS","AMOUNT","RATE_DAILY","PERIOD"]
[360210739,1746625864458,-1201.18,0.00019999,2]
[360210740,1746625864467,-1201.18,0.00019999,2]
[360210741,1746625864477,-1201.18,0.00019999,2]
[360210742,1746625864486,-1201.18,0.00019999,2]
[360210743,1746625864496,-1201.28452654,0.00019999,2]
[360210744,1746625864505,-207.664031,0.00019999,2]
[360210745,1746625864516,-207.664035,0.00019999,2]
[360210746,1746625864525,-450.0,0.00019999,2]
[360210747,1746625864534,-450.0,0.00019999,2]
[360210748,1746625864544,-450.0,0.00019999,2]
[360210749,1746625864554,-450.0,0.00019999,2]
[360210750,1746625864563,-450.0,0.00019999,2]
[360210751,1746625864573,-450.0,0.00019999,2]
[360210752,1746625864584,-495.36,0.00019999,2]
[360210753,1746625864593,-450.0,0.00019999,2]
[360210754,1746625864603,-450.0,0.00019999,2]
[360210755,1746625864613,-450.0,0.00019999,2]
[360210756,1746625864623,-450.0,0.00019999,2]
[360210757,1746625864632,-885.02,0.00019999,2]
[360210758,1746625864642,-885.02,0.00019999,2]
[360210759,1746625864652,-885.02,0.00019999,2]
[360210760,1746625864661,-885.02,0.00019999,2]
[360210761,1746625864671,-885.02,0.00019999,2]
[360210762,1746625864681,-885.02,0.00019999,2]
[360210763,1746625864690,-885.02,0.00019999,2]
[360210764,1746625864699,-885.02,0.00019999,2]
[360210765,1746625864709,-885.02,0.00019999,2]
[360210766,1746625864719,-885.02,0.00019999,2]
[360210767,1746625864727,-885.02,0.00019999,2]
[360210768,1746625864736,-885.02,0.00019999,2]
[360210769,1746625864745,-885.19199486,0.00019999,2]
[360210770,1746625864754,-450.0,0.00019999,2]
[360210771,1746625864763,-450.0,0.00019999,2]
[360210772,1746625864773,-450.0,0.00019999,2]
[360210773,1746625864784,-205.58524114,0.00019999,2]
[360210774,1746625864798,-244.41475886,0.00019999,2]
[360210775,1746625864807,-155.66007497,0.00019999,2]
[360210776,1746625864819,-294.33992503,0.00019999,2]
[360210777,1746625864830,-450.0,0.00019999,2]
[360210778,1746625864839,-199.06,0.00019999,2]
[360210779,1746625864849,-1928.56,0.00019999,2]
[360210780,1746625864858,-946.96553927,0.00019999,2]
[360210781,1746625864869,-499.9970157,0.00019999,2]
[360210782,1746625865117,-150.0,0.00019725,2]
[360210783,1746625865127,-150.0,0.00019733,2]
[360210784,1746625865137,-1640.52600341,0.00019744,2]
[360210785,1746625865146,-150.0,0.00019748,2]
[360210786,1746625865156,-150.0,0.00019749,2]
[360210787,1746625865166,-150.0,0.0001976,2]
[360210788,1746625865175,-150.0,0.00019761,2]
[360210789,1746625865184,-150.0,0.00019771,2]
[360210790,1746625865359,-150.0,0.00019795,2]
[360210791,1746625865369,-150.0,0.00019802,2]
[360210792,1746625865379,-150.0,0.00019814,2]
[360210793,1746625865388,-150.0,0.00019821,2]
[360210794,1746625865398,-150.0,0.00019826,2]
[360210795,1746625865408,-150.0,0.0001983,2]
[360210796,1746625865418,-150.0,0.00019831,2]
[360210797,1746625865429,-150.0,0.00019831,2]
[360210798,1746625865439,-150.0,0.00019832,2]
[360210799,1746625865449,-150.0,0.00019832,2]
[360210800,1746625865458,-150.0,0.00019841,2]
[360210801,1746625865468,-1142.0,0.00019861,2]
[360210802,1746625865478,-150.0,0.00019873,2]
[360210803,1746625865487,-150.0,0.00019886,2]
[360210804,1746625865497,-450.0,0.0001989,2]
[360210805,1746625865507,-151.0,0.0001989,2]
[360210806,1746625865517,-450.0,0.00019898,2]
[360210807,1746625865526,-150.0,0.00019903,2]
[360210808,1746625865536,-150.0,0.00019919,2]
[360210809,1746625865546,-150.0,0.00019921,2]
[360210810,1746625865556,-150.0,0.00019924,2]
[360210811,1746625865565,-155.401941,0.00019924,2]
[360210812,1746625865575,-150.0,0.00019939,2]
[360210813,1746625865585,-150.0,0.00019945,2]
[360210814,1746625865595,-150.0,0.0001996,2]
[360210815,1746625865605,-150.0,0.00019961,2]
[360210816,1746625865614,-249.05438394,0.00019967,2]
[360210817,1746625865826,-200.94561606,0.00019967,2]
[360210818,1746625865836,-450.0,0.00019968,2]
[360210819,1746625865845,-450.0,0.00019969,2]
[360210820,1746625865855,-276.68175454,0.00019999,2]
[360210821,1746625865868,-204.91569049,0.00019999,2]
[360210822,1746625865878,-1928.56,0.00019999,2]
[360210823,1746625865887,-1928.56,0.00019999,2]
[360210824,1746625865897,-1928.56,0.00019999,2]
[360210825,1746625865907,-1928.56,0.00019999,2]
[360210826,1746625865917,-1928.56,0.00019999,2]
[360210827,1746625865932,-1928.56,0.00019999,2]
[360210828,1746625865941,-1928.56,0.00019999,2]
[360210829,1746625865952,-1928.56,0.00019999,2]
[360210830,1746625865962,-1928.56,0.00019999,2]
[360210831,1746625865974,-1928.56,0.00019999,2]
[360210832,1746625865984,-1928.56,0.00019999,2]
[360210833,1746625865994,-1928.6,0.00019999,2]
[360210834,1746625866005,-450.0,0.00019999,2]
[360210835,1746625866015,-450.0,0.00019999,2]
[360210836,1746625866025,-450.0,0.00019999,2]
[360210837,1746625866035,-450.0,0.00019999,2]
[360210838,1746625866045,-450.0,0.00019999,2]
[360210839,1746625866054,-450.0,0.00019999,2]
[360210840,1746625866064,-450.0,0.00019999,2]
[360210841,1746625866074,-523.5883667,0.00019999,2]
[360210842,1746625866083,-513.95275873,0.00019999,2]
[360210843,1746625866094,-34179.84,0.00019999,2]
[360210844,1746625866103,-34179.84,0.00019999,2]
[360210845,1746625866113,-34179.84,0.00019999,2]
[360210846,1746625866124,-34179.84,0.00019999,2]
[360210847,1746625866135,-34179.84,0.00019999,2]
[360210848,1746625866144,-34179.84,0.00019999,2]
[360210849,1746625866159,-34179.84,0.00019999,2]
[360210850,1746625866169,-34179.84,0.00019999,2]
[360210851,1746625866180,-34179.84,0.00019999,2]
[360210852,1746625866189,-34179.84,0.00019999,2]
[360210853,1746625866199,-34179.84,0.00019999,2]
[360210854,1746625866209,-34179.84,0.00019999,2]
[360210855,1746625866219,-4173.24,0.00019999,2]
[360210856,1746625866229,-34179.84,0.00019999,2]
[360210857,1746625866238,-4173.24,0.00019999,2]
[360210858,1746625866248,-4173.24,0.00019999,2]
[360210859,1746625866258,-4173.24,0.00019999,2]
[360210860,1746625866267,-34179.8495,0.00019999,2]
[360210861,1746625866277,-4173.24,0.00019999,2]
[360210862,1746625866287,-4173.24,0.00019999,2]
[360210863,1746625866297,-4173.24,0.00019999,2]
[360210864,1746625866307,-4173.24,0.00019999,2]
[360210865,1746625866316,-4173.24,0.00019999,2]
[360210866,1746625866326,-4173.24,0.00019999,2]
[360210867,1746625866336,-4173.24,0.00019999,2]
[360210868,1746625866345,-450.0,0.00019999,2]
[360210869,1746625866355,-4173.24,0.00019999,2]
[360210870,1746625866365,-450.0,0.00019999,2]
[360210871,1746625866375,-4173.24,0.00019999,2]
[360210872,1746625866384,-501.07796876,0.00019999,2]
[360210873,1746625866393,-4173.27792926,0.00019999,2]
[360210874,1746625866404,-3281.43,0.00019999,2]
[360210875,1746625866414,-3281.43,0.00019999,2]
[360210876,1746625866425,-3281.43,0.00019999,2]
[360210877,1746625866435,-3281.43,0.00019999,2]
[360210878,1746625866444,-3281.43,0.00019999,2]
[360210879,1746625866454,-3281.43,0.00019999,2]
[360210880,1746625866464,-3281.43,0.00019999,2]
[360210881,1746625866474,-3281.43,0.00019999,2]
[360210882,1746625866483,-3281.43,0.00019999,2]
[360210883,1746625866493,-3281.43,0.00019999,2]
[360210884,1746625866503,-3281.43,0.00019999,2]
[360210885,1746625866513,-3281.43,0.00019999,2]
[360210886,1746625866523,-3281.43,0.00019999,2]
[360210887,1746625866532,-3281.6434064,0.00019999,2]
[360210888,1746625866541,-329.0462,0.00019999,2]
[360210889,1746625866551,-700.52,0.00019999,2]
[360210890,1746625866561,-700.52,0.00019999,2]
[360210891,1746625866570,-700.52,0.00019999,2]
[360210892,1746625866580,-700.52,0.00019999,2]
[360210893,1746625866589,-700.52,0.00019999,2]
[360210894,1746625866599,-700.52,0.00019999,2]
[360210895,1746625866619,-700.52,0.00019999,2]
[360210896,1746625866632,-700.52,0.00019999,2]
[360210897,1746625866643,-700.52,0.00019999,2]
[360210898,1746625866653,-700.52,0.00019999,2]
[360210899,1746625866664,-700.52,0.00019999,2]
[360210900,1746625866677,-700.52,0.00019999,2]
[360210901,1746625866687,-700.52,0.00019999,2]
[360210902,1746625866698,-700.66595874,0.00019999,2]
[360210903,1746625866709,-1424.8,0.00019999,2]
[360210904,1746625866719,-1424.8,0.00019999,2]
[360210905,1746625866730,-1424.8,0.00019999,2]
[360210906,1746625866740,-1424.8,0.00019999,2]
[360210907,1746625866750,-1424.8,0.00019999,2]
[360210908,1746625866761,-1424.8,0.00019999,2]
[360210909,1746625866771,-1424.8,0.00019999,2]
[360210910,1746625866781,-1424.8,0.00019999,2]
[360210911,1746625866790,-1424.8,0.00019999,2]
[360210912,1746625866800,-1424.8,0.00019999,2]
[360210913,1746625866810,-1424.8,0.00019999,2]
[360210914,1746625866820,-2107.13,0.00019999,2]
[360210915,1746625866830,-2107.13,0.00019999,2]
[360210916,1746625866841,-2107.13,0.00019999,2]
[360210917,1746625866851,-2107.13,0.00019999,2]
[360210918,1746625866862,-2107.13,0.00019999,2]
[360210919,1746625866872,-2107.13,0.00019999,2]
[360210920,1746625866882,-2107.13,0.00019999,2]
[360210921,1746625866892,-2107.13,0.00019999,2]
[360210922,1746625866902,-2107.13,0.00019999,2]
[360210923,1746625866912,-2107.13,0.00019999,2]
[360210924,1746625866926,-2107.13,0.00019999,2]
[360210925,1746625866936,-2107.13,0.00019999,2]
[360210926,1746625866946,-2107.32,0.00019999,2]
[360210927,1746625866955,-538.22,0.00019999,2]
[360210928,1746625866967,-538.22,0.00019999,2]
[360210929,1746625866977,-538.22,0.00019999,2]
[360210930,1746625866987,-538.22,0.00019999,2]
[360210931,1746625867002,-538.22,0.00019999,2]
[360210932,1746625867012,-538.22,0.00019999,2]
[360210933,1746625867022,-538.22,0.00019999,2]
[360210934,1746625867032,-538.22,0.00019999,2]
[360210935,1746625867042,-538.22,0.00019999,2]
[360210936,1746625867052,-538.22,0.00019999,2]
[360210937,1746625867062,-538.22,0.00019999,2]
[360210938,1746625867072,-538.22,0.00019999,2]
[360210939,1746625867082,-538.22,0.00019999,2]
[360210940,1746625867092,-515.78,0.00019999,2]
[360210941,1746625867102,-515.78,0.00019999,2]
[360210942,1746625867112,-538.3661,0.00019999,2]
[360210943,1746625867122,-515.78,0.00019999,2]
[360210944,1746625867132,-515.78,0.00019999,2]
[360210945,1746625867142,-515.78,0.00019999,2]
[360210946,1746625867151,-515.78,0.00019999,2]
[360210947,1746625867161,-515.78,0.00019999,2]
[360210948,1746625867171,-515.78,0.00019999,2]
[360210949,1746625867182,-515.78,0.00019999,2]
[360210950,1746625867191,-515.78,0.00019999,2]
[360210951,1746625867201,-515.84801791,0.00019999,2]
[360210952,1746625867215,-450.0,0.00019999,2]
[360210953,1746625867225,-450.0,0.00019999,2]
[360210954,1746625867235,-450.0,0.00019999,2]
[360210955,1746625867245,-450.0,0.00019999,2]
[360210956,1746625867258,-450.0,0.00019999,2]
[360210957,1746625867267,-450.0,0.00019999,2]
[360210958,1746625867278,-450.0,0.00019999,2]
[360210959,1746625867288,-450.0,0.00019999,2]
[360210960,1746625867298,-450.0,0.00019999,2]
[360210961,1746625867308,-450.0,0.00019999,2]
[360210962,1746625867318,-450.0,0.00019999,2]
[360210963,1746625867328,-450.0,0.00019999,2]
[360210964,1746625867338,-450.0,0.00019999,2]
[360210965,1746625867347,-450.0,0.00019999,2]
[360210966,1746625867357,-450.0,0.00019999,2]
[360210967,1746625867367,-450.0,0.00019999,2]
[360210968,1746625867377,-291.34,0.00019999,2]
[360210969,1746625867387,-501.77,0.00019999,2]
[360210970,1746625867397,-450.0,0.00019999,2]
[360210971,1746625867406,-450.0,0.00019999,2]
[360210972,1746625867416,-450.0,0.00019999,2]
[360210973,1746625867427,-450.0,0.00019999,2]
[360210974,1746625867437,-450.0,0.00019999,2]
[360210975,1746625867447,-450.0,0.00019999,2]
[360210976,1746625867456,-450.0,0.00019999,2]
[360210977,1746625867466,-412.29,0.00019999,2]
[360210978,1746625867476,-450.0,0.00019999,2]
[360210979,1746625867485,-450.0,0.00019999,2]
[360210980,1746625867495,-450.0,0.00019999,2]
[360210981,1746625867505,-4483.06,0.00019999,2]
[360210982,1746625867515,-4483.06,0.00019999,2]
[360210983,1746625867524,-4483.06,0.00019999,2]
[360210984,1746625867534,-1017.76,0.00019999,2]
[360210985,1746625867543,-4483.06,0.00019999,2]
[360210986,1746625867554,-1017.76,0.00019999,2]
[360210987,1746625867564,-4483.06,0.00019999,2]
[360210988,1746625867573,-1017.76,0.00019999,2]
[360210989,1746625867583,-4483.06,0.00019999,2]
[360210990,1746625867592,-1017.76,0.00019999,2]
[360210991,1746625867602,-4483.06,0.00019999,2]
[360210992,1746625867612,-1017.76,0.00019999,2]
[360210993,1746625867621,-4483.06,0.00019999,2]
[360210994,1746625867632,-1017.76,0.00019999,2]
[360210995,1746625867641,-4483.06,0.00019999,2]
[360210996,1746625867652,-1017.76,0.00019999,2]
[360210997,1746625867662,-4483.06,0.00019999,2]
[360210998,1746625867672,-1017.76,0.00019999,2]
[360210999,1746625867684,-4483.28003005,0.00019999,2]
[360211000,1746625867693,-1017.76,0.00019999,2]
[360211001,1746625867703,-1017.76,0.00019999,2]
[360211002,1746625867712,-1017.76,0.00019999,2]
[360211003,1746625867722,-1017.76,0.00019999,2]
[360211004,1746625867732,-1017.76,0.00019999,2]
[360211005,1746625867742,-1017.86003868,0.00019999,2]
[360211006,1746625867752,-519.12,0.00019999,2]
[360211007,1746625867762,-519.12,0.00019999,2]
[360211008,1746625867771,-519.12,0.00019999,2]
[360211009,1746625867782,-519.12,0.00019999,2]
[360211010,1746625867792,-519.12,0.00019999,2]
[360211011,1746625867802,-519.12,0.00019999,2]
[360211012,1746625867813,-519.12,0.00019999,2]
[360211013,1746625867823,-519.12,0.00019999,2]
[360211014,1746625867833,-519.12,0.00019999,2]
[360211015,1746625867842,-519.12,0.00019999,2]
[360211016,1746625867852,-519.12,0.00019999,2]
[360211017,1746625867862,-519.12,0.00019999,2]
[360211018,1746625867871,-519.12214275,0.00019999,2]
[360211019,1746625867881,-1688.67,0.00019999,2]
[360211020,1746625867891,-1688.67,0.00019999,2]
[360211021,1746625867901,-1688.67,0.00019999,2]
[360211022,1746625867911,-1688.67,0.00019999,2]
[360211023,1746625867921,-1688.67,0.00019999,2]
[360211024,1746625867935,-1688.67,0.00019999,2]
[360211025,1746625867945,-1688.67,0.00019999,2]
[360211026,1746625867955,-1688.67,0.00019999,2]
[360211027,1746625867967,-1688.67,0.00019999,2]
[360211028,1746625867976,-1688.67,0.00019999,2]
[360211029,1746625867986,-1688.67,0.00019999,2]
[360211030,1746625867995,-1688.67,0.00019999,2]
[360211031,1746625868006,-450.0,0.00019999,2]
[360211032,1746625868016,-1688.67,0.00019999,2]
[360211033,1746625868025,-450.0,0.00019999,2]
[360211034,1746625868035,-1688.81114181,0.00019999,2]
[360211035,1746625868045,-450.0,0.00019999,2]
[360211036,1746625868054,-450.0,0.00019999,2]
[360211037,1746625868064,-450.0,0.00019999,2]
[360211038,1746625868075,-450.0,0.00019999,2]
[360211039,1746625868084,-450.0,0.00019999,2]
[360211040,1746625868095,-450.0,0.00019999,2]
[360211041,1746625868106,-450.0,0.00019999,2]
[360211042,1746625868115,-450.0,0.00019999,2]
[360211043,1746625868126,-450.0,0.00019999,2]
[360211044,1746625868136,-456.71314733,0.00019999,2]
[360211045,1746625868147,-25732.11,0.00019999,2]
[360211046,1746625868156,-25732.11,0.00019999,2]
[360211047,1746625868167,-25732.11,0.00019999,2]
[360211048,1746625868177,-25732.11,0.00019999,2]
[360211049,1746625868188,-25732.11,0.00019999,2]
[360211050,1746625868199,-25732.11,0.00019999,2]
[360211051,1746625868209,-25732.11,0.00019999,2]
[360211052,1746625868220,-1449.69160284,0.00019999,2]
[360211053,1746625868729,-150.0,0.00019735,2]
[360211054,1746625868738,-150.0,0.00019737,2]
[360211055,1746625868748,-150.0,0.00019741,2]
[360211056,1746625868758,-150.0,0.00019745,2]
[360211057,1746625868768,-150.0,0.00019748,2]
[360211058,1746625868777,-128.09392468,0.00019758,2]
[360211059,1746625868789,-21.90607532,0.00019758,2]
[360211060,1746625868798,-302.37830678,0.00019761,2]
[360211061,1746625868815,-1338.14769661,0.00019761,2]
[360211062,1746625868824,-150.0,0.00019803,2]
[360211063,1746625868834,-150.0,0.00019815,2]
[360211064,1746625868844,-150.0,0.00019834,2]
[360211065,1746625868853,-150.0,0.00019837,2]
[360211066,1746625868864,-450.0,0.0001986,2]
[360211067,1746625868873,-450.0,0.0001986,2]
[360211068,1746625868883,-150.0,0.00019869,2]
[360211069,1746625868893,-150.0,0.00019873,2]
[360211070,1746625868902,-150.0,0.00019877,2]
[360211071,1746625868911,-150.0,0.00019878,2]
[360211072,1746625868923,-150.0,0.00019888,2]
[360211073,1746625868935,-151.0,0.0001989,2]
[360211074,1746625868945,-150.0,0.0001989,2]
[360211075,1746625868955,-450.0,0.00019897,2]
[360211076,1746625868964,-450.0,0.00019897,2]
[360211077,1746625868975,-150.0,0.0001991,2]
[360211078,1746625868984,-150.0,0.00019923,2]
[360211079,1746625868994,-157.227011,0.00019924,2]
[360211080,1746625869004,-150.0,0.0001993,2]
[360211081,1746625869014,-150.0,0.00019943,2]
[360211082,1746625869024,-150.0,0.00019949,2]
[360211083,1746625869033,-450.0,0.00019967,2]
[360211084,1746625869043,-450.0,0.00019967,2]
[360211085,1746625869053,-450.0,0.00019969,2]
[360211086,1746625869063,-509.97689892,0.00019969,2]
[360211087,1746625869072,-450.0,0.00019969,2]
[360211088,1746625869082,-150.0,0.00019977,2]
[360211089,1746625869092,-450.0,0.00019984,2]
[360211090,1746625869102,-450.0,0.00019989,2]
[360211091,1746625869112,-334.5026689,0.00019989,2]
[360211092,1746625869122,-325.34572457,0.00019999,2]
[360211093,1746625869143,-23957.07267259,0.00019999,2]
[360211094,1746625869153,-25732.11,0.00019999,2]
[360211095,1746625869163,-25732.11,0.00019999,2]
[360211096,1746625869173,-25732.11,0.00019999,2]
[360211097,1746625869186,-25732.11,0.00019999,2]
[360211098,1746625869195,-25732.11,0.00019999,2]
[360211099,1746625869205,-25732.1572,0.00019999,2]
[360211100,1746625869215,-450.0,0.00019999,2]
[360211101,1746625869224,-450.0,0.00019999,2]
[360211102,1746625869234,-450.0,0.00019999,2]
[360211103,1746625869243,-450.0,0.00019999,2]
[360211104,1746625869253,-473.2522791,0.00019999,2]
[360211105,1746625869263,-450.0,0.00019999,2]
[360211106,1746625869272,-392.76,0.00019999,2]
[360211107,1746625869282,-468.0,0.0002,2]
[360211108,1746625869291,-212.0,0.0002,2]
[360211109,1746625869301,-468.0,0.0002,2]
[360211110,1746625869310,-212.0,0.0002,2]
[360211111,1746625869320,-468.0,0.0002,2]
[360211112,1746625869329,-212.0,0.0002,2]
[360211113,1746625869338,-468.0,0.0002,2]
[360211114,1746625869349,-468.0,0.0002,2]
[360211115,1746625869358,-468.0,0.0002,2]
[360211116,1746625869367,-468.0,0.0002,2]
[360211117,1746625869376,-468.0,0.0002,2]
[360211118,1746625869386,-468.0,0.0002,2]
[360211119,1746625869395,-468.0,0.0002,2]
[360211120,1746625869405,-468.0,0.0002,2]
[360211121,1746625869414,-468.0,0.0002,2]
[360211122,1746625869423,-468.0,0.0002,2]
[360211123,1746625869435,-468.0,0.0002,2]
[360211124,1746625869444,-468.0,0.0002,2]
[360211125,1746625869453,-468.0,0.0002,2]
[360211126,1746625869462,-468.0,0.0002,2]
[360211127,1746625869472,-468.0,0.0002,2]
[360211128,1746625869481,-468.0,0.0002,2]
[360211129,1746625869490,-468.0,0.0002,2]
[360211130,1746625869499,-417825.98021401,0.0002,2]
[360211131,1746625869512,-10980.63456963,0.0002,2]
[360211132,1746625869523,-40874.1297285,0.0002,2]
[360211134,1746625898680,3600.0,0.0003,30]
[360211137,1746626113466,150.0,0.00018986,7]
[360211138,1746626146122,682.32,0.00016975,2]
[360211139,1746626146386,682.32,0.00019238,2]
[360211140,1746626196510,177.045518,0.00018601,2]
[360211141,1746626250365,250.0,0.00018878,2]
[360211142,1746626258944,1044.084465,0.0001942,2]
[360211143,1746626283904,1009.53,0.00018881,2]
[360211144,1746626334794,300.0,0.0003,30]
[360211145,1746626408529,602.91888845,0.00019259,2]
[360211146,1746626457429,1181.0,0.000194,2]
[360211147,1746626553194,1000.0,0.00018892,2]
[360211148,1746626581911,1902.2,0.00030137,120]
[360211149,1746626628825,1644.759,0.000195,2]
[360211150,1746626657667,721.94,0.00019044,2]
[360211151,1746626689779,250.0,0.00017,2]
[360211152,1746626690861,300.0,0.00019,2]
[360211153,1746626837858,23900.0,0.00018827,2]
[360211169,1746627031963,-537.63482845,0.00019598,2]
[360211170,1746627031973,-200.0,0.00019599,2]
[360211171,1746627031983,-1181.0,0.000196,2]
[360211172,1746627031994,-151.0,0.000196,2]
[360211173,1746627032004,-200.0,0.00019619,2]
[360211174,1746627032014,-602.91888845,0.00019624,2]
[360211175,1746627032024,-537.61,0.00019668,2]
[360211176,1746627032034,-537.61,0.00019683,2]
[360211177,1746627032049,-537.61,0.00019697,2]
[360211178,1746627032059,-1612.83,0.000197,2]
[360211179,1746627032069,-1200.0,0.00019755,2]
[360211180,1746627032082,-300.0,0.00019755,2]
[360211181,1746627032092,-3455.80919741,0.00019756,2]
[360211182,1746627032102,-3455.80919741,0.00019772,2]
[360211183,1746627032113,-151.0,0.00019772,2]
[360211184,1746627032123,-207.4,0.00019772,2]
[360211185,1746627032133,-151.0,0.00019772,2]
[360211187,1746627032143,-151.0,0.00019772,2]
[360211189,1746627032154,-155.0,0.00019772,2]
[360211191,1746627032164,-151.0,0.00019772,2]
[360211193,1746627032173,-668.65185757,0.00019772,2]
[360211195,1746627032183,-157.01474629,0.00019776,2]
[360211197,1746627032194,-847.0037,0.00019785,2]
[360211199,1746627032204,-2933.36289378,0.00019785,2]
[360211201,1746627032214,-3455.80919741,0.00019788,2]
[360211203,1746627032224,-398.8182,0.00019797,2]
[360211205,1746627032234,-277.3568252,0.00019797,2]
[360211207,1746627032245,-2933.3628937,0.00019798,2]
[360211208,1746627032254,-1181.0,0.000198,2]
[360211209,1746627032265,-3455.80919741,0.00019804,2]
[360211210,1746627032275,-2933.3628937,0.00019811,2]
[360211211,1746627032287,-3455.80919741,0.0001982,2]
[360211212,1746627032298,-694.0,0.00019823,2]
[360211213,1746627032308,-2933.3628937,0.00019823,2]
[360211214,1746627032319,-151.0,0.00019827,2]
[360211215,1746627032329,-31047.5201087,0.00019828,2]
[360211216,1746627032340,-798.0,0.00019829,2]
[360211217,1746627032350,-277.35682518,0.00019833,2]
[360211218,1746627032360,-3455.80919741,0.00019836,2]
[360211219,1746627032371,-2933.3628937,0.00019836,2]
[360211220,1746627032382,-2000.0,0.00019839,2]
[360211221,1746627032395,-200.0,0.00019839,2]
[360211222,1746627032407,-1453.0,0.00019843,2]
[360211223,1746627032417,-449.83,0.00019845,2]
[360211224,1746627032429,-449.83,0.00019845,2]
[360211225,1746627032439,-720.72,0.00019847,3]
[360211226,1746627032450,-2933.3628937,0.00019849,2]
[360211227,1746627032460,-449.83,0.00019849,2]
[360211228,1746627032471,-449.83,0.00019849,2]
[360211229,1746627032481,-1990.2,0.00019849,2]
[360211230,1746627032496,-449.83,0.0001985,2]
[360211231,1746627032507,-449.83,0.0001985,2]
[360211232,1746627032517,-3455.80919741,0.00019852,2]
[360211233,1746627032527,-499.922,0.00019853,2]
[360211234,1746627032537,-873.206,0.00019853,2]
[360211235,1746627032547,-1142.0,0.00019853,2]
[360211236,1746627032557,-630.7130308,0.00019855,2]
[360211237,1746627032567,-1385.43696421,0.00019855,2]
[360211238,1746627032578,-500.0,0.00019855,2]
[360211239,1746627032590,-500.0,0.00019855,2]
[360211240,1746627032600,-1385.43696421,0.00019855,2]
[360211241,1746627032612,-298.07302448,0.00019855,2]
[360211242,1746627032622,-500.0,0.00019855,2]
[360211243,1746627032632,-1385.43696421,0.00019855,2]
[360211244,1746627032642,-1385.43696421,0.00019855,2]
[360211245,1746627032652,-500.0,0.00019855,2]
[360211246,1746627032662,-1385.43696421,0.00019855,2]
[360211247,1746627032672,-500.0,0.00019855,2]
[360211248,1746627032682,-1385.43696421,0.00019855,2]
[360211249,1746627032692,-1385.43696421,0.00019855,2]
[360211250,1746627032702,-500.0,0.00019855,2]
[360211251,1746627032711,-1385.43696421,0.00019855,2]
[360211252,1746627032721,-500.0,0.00019855,2]
[360211253,1746627032731,-1385.43696421,0.00019855,2]
[360211254,1746627032741,-227.41689989,0.00019855,2]
[360211255,1746627032753,-1385.43696421,0.00019855,2]
[360211256,1746627032763,-1385.43696421,0.00019855,2]
[360211257,1746627032773,-500.0,0.00019855,2]
[360211258,1746627032783,-1385.43696421,0.00019855,2]
[360211259,1746627032794,-500.0,0.00019855,2]
[360211260,1746627032804,-1385.43696421,0.00019855,2]
[360211261,1746627032813,-500.0,0.00019855,2]
[360211262,1746627032823,-1385.43696421,0.00019855,2]
[360211263,1746627032833,-500.0,0.00019855,2]
[360211264,1746627032843,-1385.43696421,0.00019855,2]
[360211265,1746627032853,-1385.43696421,0.00019855,2]
[360211266,1746627032864,-500.0,0.00019855,2]
[360211267,1746627032874,-1385.43696421,0.00019855,2]